Cogmind - Beta 11.1 @@@ ROGUE MODE // 2022.10.08 @ 11:02:34 Player: Flerik Result: Destroyed by as-44799 with Assembled Heavy Rifle Performance ------------- Evolutions (1) 500 Regions Visited (3) 600 Robots Destroyed (25) 125 Value Destroyed (679) 679 Prototype IDs (6) 120 Alien Tech Used (0) 0 Bonus (0) 0 TOTAL SCORE: 2024 Bonus ------- None Cogmind --------- Core Integrity 0/400 Matter 300/300 Energy 99/100 System Corruption 0% Temperature Cool (0) Movement Core (50) Location -9/Mines Parts ------- > --- POWER (1) -------- (None) > --- PROPULSION (3) --- (None) > --- UTILITY (3) ------ (None) > --- WEAPON (2) ------- (None) > --- INVENTORY (5) ---- Ion Engine Signal Interpreter Improved Propulsion Shielding Medium Laser Heavy Hammer Peak State ------------ > --- POWER ------------ Nuclear Core > --- PROPULSION ------- Light Treads Improved Treads Improved Treads > --- UTILITY ---------- Small Storage Unit Seismic Detector Light Armor Plating > --- WEAPON ----------- Small Laser Particle Gun > --- INVENTORY -------- Ion Engine Ion Engine Signal Interpreter Improved Propulsion Shielding Improved Propulsion Shielding Light Armor Plating Medium Laser Heavy Hammer [Rating: 15] Favorites ----------- Power Ion Engine Engine Ion Engine Power Core Nuclear Core Propulsion Light Treads Treads Light Treads Utility Small Storage Unit Device Seismic Detector Storage Small Storage Unit Protection Light Armor Plating Weapon Medium Laser Energy Gun Medium Laser Energy Cannon Advanced Beam Cannon Ballistic Gun Assault Rifle Launcher Grenade Launcher Build | -11 -10 -9 -9 ------- Run | Scr Mat Mat Min Slots Evolved 2 | . . 2 . Power . | . . . . Propulsion 1 | . . 1 . Utility 1 | . . 1 . Weapon . | . . . . Parts Attached 21 | 7 1 13 . Power 3 | 1 . 2 . Engine 2 | 1 . 1 . Core 1 | . . 1 . Reactor . | . . . . Propulsion 6 | 2 . 4 . Treads 6 | 2 . 4 . Leg . | . . . . Wheel . | . . . . Hover . | . . . . Flight . | . . . . Utility 5 | 2 . 3 . Device 1 | 1 . . . Storage 1 | 1 . . . Processor . | . . . . Hackware . | . . . . Protection 3 | . . 3 . Artifact . | . . . . Weapon 7 | 2 1 4 . Energy Gun 3 | 1 . 2 . Energy Cannon 1 | . . 1 . Ballistic Gun 2 | 1 1 . . Ballistic Cannon . | . . . . Launcher 1 | . . 1 . Special Weapon . | . . . . Impact Weapon . | . . . . Slashing Weapon . | . . . . Piercing Weapon . | . . . . Special Melee Weapon . | . . . . Unidentified Prototypes 1 | . . 1 . Parts Lost 12 | . . 6 6 Power 2 | . . 1 1 Propulsion 3 | . . 1 2 Utility 4 | . . 2 2 Weapon 3 | . . 2 1 Highest Loss Streak 6 | . . 2 6 To Critical Strikes . | . . . . Average Slot Usage (%) 91 | . 100 93 44 Engine 6 | . 14 5 6 Core 4 | . . 5 . Treads 27 | . 28 28 8 Device 11 | . 14 11 4 Storage 11 | . 14 11 6 Protection 7 | . . 8 4 Energy Gun 13 | . 14 13 6 Ballistic Gun 7 | . 14 7 . Naked Turns 13 | . . . 13 Heaviest Build 21 | 14 15 21 19 Greatest Support 66 | 40 40 66 43 Greatest Overweight (x) . | . . . . Average Overweight (x) . | . . . . Largest Inventory Capacity 8 | 8 8 8 8 Average Capacity 7 | 7 8 8 7 Most Carried 8 | 3 7 8 7 Average Carried 6 | 1 4 7 6 Final Capacity 8 | 8 8 8 5 Final Carried 7 | 3 6 7 5 Class Distribution -------------------- 77% | Mutant 22% | Scavenger-Mutant Dominant Class ---------------- Mutant | -10/Materials Mutant | -9/Materials Scavenger-Mutant | -9/Mines Resources | -11 -10 -9 -9 ----------- Run | Scr Mat Mat Min Matter Collected 562 | 227 . 335 . Remotely . | . . . . Salvage Created 1032 | 123 . 898 11 Parts 62 | 7 . 55 . Haulers Intercepted 2 | . . 2 . Recyclers Shooed 1 | . . 1 . Parts Field Recycled . | . . . . Retrieved Matter . | . . . . Parts Self-Destructed . | . . . . Prevented . | . . . . Kills | -11 -10 -9 -9 ------- Run | Scr Mat Mat Min Combat Hostiles Destroyed 17 | . . 16 1 Guns 12 | . . 12 . Cannons 1 | . . . 1 AOE 4 | . . 4 . Classes Destroyed 10 | 2 . 7 1 Worker 1 | . . 1 . Builder 1 | . . 1 . Tunneler 2 | 2 . . . Hauler 2 | . . 2 . Recycler 2 | 1 . 1 . Watcher 1 | . . 1 . Grunt 10 | . . 10 . Brawler 1 | . . 1 . Sentry 5 | . . 5 . Assembled 1 | . . . 1 Best Kill Streak 8 | 3 . 8 1 Combat Bots Only 7 | . . 7 1 Max Kills in Single Turn 3 | 1 . 3 1 Gunslinging . | . . . . Exploded 3 | . . 3 . Melee . | . . . . Uniques/NPCs Destroyed . | . . . . Combat | -11 -10 -9 -9 -------- Run | Scr Mat Mat Min Damage Taken 1858 | . . 1230 628 Core 406 | . . 110 296 Absorbed by Shields . | . . . . Core Remaining (%) 100 | 100 100 . . Volleys Fired 94 | 11 . 78 5 Largest 2 | 1 . 2 2 Hottest 108 | 50 . 105 108 Shots Fired 162 | 11 . 142 9 Gun 153 | 11 . 138 4 Cannon 5 | . . . 5 Launcher 4 | . . 4 . Special . | . . . . Kinetic 55 | . . 55 . Thermal 103 | 11 . 83 9 Explosive 4 | . . 4 . Electromagnetic . | . . . . Robot Hit Streak 10 | 6 . 10 6 Robot Miss Streak 3 | 2 . 3 2 Penetration Max . | . . . . Secondary Targets 1 | . . 1 . Max Gunslinging Chain 1 | . . 1 . Shots Hit Robots 113 | 9 . 98 6 Core Hits 46 | 4 . 38 4 Critical Kills . | . . . . Critical Parts Destroyed . | . . . . Critical Strikes 5 | . . 5 . Burn 5 | . . 5 . Melee Attacks . | . . . . Impact . | . . . . Slashing . | . . . . Piercing . | . . . . Sneak Attacks . | . . . . Combat Hostiles . | . . . . Follow-up Attacks . | . . . . Damage Inflicted 1711 | 114 . 1489 108 Guns 1384 | 114 . 1235 35 Cannons 61 | . . . 61 Explosions 245 | . . 245 . Melee . | . . . . Ramming 21 | . . 9 12 Kinetic 514 | . . 514 . Thermal 931 | 114 . 721 96 Explosive 245 | . . 245 . Electromagnetic . | . . . . Impact . | . . . . Slashing . | . . . . Piercing . | . . . . Highest Corruption . | . . . . Average Corruption . | . . . . Corruption Purged . | . . . . Corruption Blocked . | . . . . Overload Shots . | . . . . Overflow Damage . | . . . . Projectiles . | . . . . Explosions . | . . . . Melee . | . . . . Knockbacks . | . . . . Impact . | . . . . Kinetic . | . . . . Secondary . | . . . . Self-Inflicted Damage 6 | . . . 6 Shots . | . . . . Rammed 6 | . . 2 4 Targets Rammed 6 | . . 2 4 Kicked . | . . . . Crushed . | . . . . Highest Temperature 456 | 50 . 456 171 Average Temperature 114 | 19 . 125 91 Received Heat Transfer 596 | . . 576 20 Effects 7 | . . 7 . Shutdowns 1 | . . 1 . Energy Bleed 1 | . . 1 . Interference 3 | . . 3 . Matter Decay 1 | . . 1 . Damage (minor) 1 | . . 1 . Siege Activations . | . . . . Robots Corrupted . | . . . . Combat Hostiles . | . . . . Parts Fried . | . . . . Impact Corruptions . | . . . . Robots Melted . | . . . . Combat Hostiles . | . . . . Parts Melted 9 | 1 . 8 . Heat Transferred 2891 | 333 . 2372 186 Parts Sabotaged . | . . . . Parts Stolen . | . . . . Parts Stripped . | . . . . Power Chain Reactions . | . . . . Missiles Intercepted . | . . . . Alert | -11 -10 -9 -9 ------- Run | Scr Mat Mat Min Peak Influence 339 | 15 26 339 20 Initial 20 | . 9 10 20 Average 105 | 4 17 139 8 Maximum Alert Level 1 | . . 1 . Low Security (%) 87 | 100 100 82 100 Level 1 12 | . . 17 . Level 2 . | . . . . Level 3 . | . . . . Level 4 . | . . . . Level 5 . | . . . . High Security . | . . . . Max Security . | . . . . Squads Dispatched 1 | . . 1 . Investigation . | . . . . Extermination . | . . . . Reinforcement 1 | . . 1 . Assault . | . . . . Garrison . | . . . . Intercept . | . . . . Searches Triggered . | . . . . Construction Impeded . | . . . . Haulers Reinforced . | . . . . Active Scanning Responses . | . . . . Cargo Convoy Interrupts . | . . . . Stealth | -11 -10 -9 -9 --------- Run | Scr Mat Mat Min Distress Signals 2 | . . 2 . Communications Jammed . | . . . . Distress Signals . | . . . . Times Spotted 40 | . . 21 19 Peak Tracking Total 17 | . . 7 17 Tactical Retreats . | . . . . Traps | -11 -10 -9 -9 ------- Run | Scr Mat Mat Min Traps Triggered . | . . . . Indirectly . | . . . . Trap Hack Attempts . | . . . . Triggered . | . . . . Disarmed . | . . . . Reprogrammed . | . . . . Reused . | . . . . Traps Extracted . | . . . . Installed . | . . . . Triggered . | . . . . Machines | -11 -10 -9 -9 ---------- Run | Scr Mat Mat Min Machines Disabled . | . . . . Max in Single Turn . | . . . . Machines Sabotaged . | . . . . Garrisons Compromised . | . . . . Overloaded Fab Kills . | . . . . Hacking | -11 -10 -9 -9 --------- Run | Scr Mat Mat Min Machines Accessed 8 | . 4 4 . Terminals 6 | . 3 3 . Fabricators . | . . . . Repair Stations . | . . . . Recycling Units 2 | . 1 1 . Scanalyzers . | . . . . Garrison Access . | . . . . Total Hacks 28 | . 18 10 . Successful 20 | . 14 6 . Failed 8 | . 4 4 . Catastrophic 1 | . . 1 . Database Lockouts . | . . . . Manual 16 | . 8 8 . Terminals 17 | . 11 6 . Fabricators . | . . . . Repair Stations . | . . . . Recycling Units 11 | . 7 4 . Scanalyzers . | . . . . Garrison Access . | . . . . Terminal Hacks 8 | . 5 3 . Prototype ID Bank 3 | . 2 1 . Level Access Points 1 | . 1 . . Branch Access Points 1 | . . 1 . Alert Level 1 | . 1 . . Unreport Threat 1 | . . 1 . Zone Layout 1 | . 1 . . Fabricator Hacks . | . . . . Repair Station Hacks . | . . . . Recycling Unit Hacks 6 | . 5 1 . Recycle Component 1 | . 1 . . Process 1 | . 1 . . Report Inventory 2 | . 1 1 . Retrieve Matter 1 | . 1 . . Retrieve Components 1 | . 1 . . Scanalyzer . | . . . . Garrison Access Hacks . | . . . . Unauthorized Hacks 6 | . 4 2 . Terminals 3 | . 3 . . Botnet 2 | . 2 . . Operators 1 | . 1 . . Fabricators . | . . . . Repair Stations . | . . . . Recycling Units 3 | . 1 2 . Recyclers 2 | . 1 1 . Mask 1 | . . 1 . Scanalyzers . | . . . . Garrison Access . | . . . . Data Cores Recovered . | . . . . Used . | . . . . Hacking Detections 7 | . 3 4 . Full Trace Events . | . . . . Feedback Events . | . . . . Feedback Blocked . | . . . . Robot Schematics Acquired . | . . . . Robots Built . | . . . . Authchips . | . . . . Time . | . . . . Total Robot Build Rating . | . . . . Part Schematics Acquired . | . . . . Parts Built . | . . . . Authchips . | . . . . Time . | . . . . Total Part Build Rating . | . . . . Parts Repaired . | . . . . Time . | . . . . Parts Recycled 1 | . 1 . . Recycled Matter 45 | . 45 . . Retrieved Matter 45 | . 45 . . Retrieved Components 1 | . 1 . . Parts Scanalyzed . | . . . . Part Schematics Acquired . | . . . . Parts Damaged . | . . . . Bothacking | -11 -10 -9 -9 ------------ Run | Scr Mat Mat Min Used RIF Installer . | . . . . Robots Hacked . | . . . . Non-combat . | . . . . Combat . | . . . . Robot Hacks Applied . | . . . . Relay Couplers Released . | . . . . Fabnet Peak Effective % . | . . . . Robots Rewired . | . . . . Allies Hacked . | . . . . Hacks Repelled . | . . . . Allies | -11 -10 -9 -9 -------- Run | Scr Mat Mat Min Total Allies 1 | . . . 1 Largest Group 1 | . . . 1 Highest-Rated Group 31 | . . . 31 Highest-Rated Ally 31 | . . . 31 Total Orders . | . . . . Ally Attacks 4 | . . . 4 Total Damage 22 | . . . 22 Kills . | . . . . Allies Corrupted . | . . . . Allies Melted . | . . . . Intel | -11 -10 -9 -9 ------- Run | Scr Mat Mat Min Robot Analysis Total . | . . . . Derelict Logs Recovered . | . . . . Drone Launches . | . . . . Drone Recoveries . | . . . . Exploration | -11 -10 -9 -9 ------------- Run | Scr Mat Mat Min Turns Passed 1119 | 119 131 823 46 Spaces Moved 528 | 62 80 359 27 Core 30 | 13 . . 17 Treads 498 | 49 80 359 10 Legs . | . . . . Wheels . | . . . . Hover . | . . . . Flight . | . . . . Fastest Speed 50 | 50 160 160 50 Average Speed 153 | 136 160 160 90 Slowest Speed 160 | 160 160 160 160 Overloaded Moves . | . . . . Propulsion Burnouts . | . . . . Robots Hopped . | . . . . Cave-ins Triggered . | . . . . Exploration Rate (%) 17 | 5 19 32 15 Regions Visited 3 Branch Regions 1 Pre-discovered Areas . | . . . . Known Exits Taken 2 | . 1 1 . Unknown Exits Taken 1 | 1 . . . Scrap Searched . | . . . . Spaces Dug . | . . . . Terrain Destroyed 12 | . . 12 . Melee . | . . . . Projectile . | . . . . AOE 12 | . . 12 . Terrain Rammed . | . . . . Walls Destroyed . | . . . . Machines Disabled . | . . . . Actions | -11 -10 -9 -9 --------- Run | Scr Mat Mat Min Total 671 | 82 83 465 41 Wait 1 | . . . 1 Move 525 | 61 79 358 27 Hop . | . . . . Pick Up 11 | 3 3 5 . Fast Attach 14 | 7 . 7 . Attach 2 | . . 2 . Detach 1 | . . 1 . Swap 5 | . 1 4 . Drop 12 | . . 8 4 Fire 94 | 11 . 78 5 Melee . | . . . . Ram 4 | . . . 4 Kick . | . . . . Crush 2 | . . 2 . Escape Stasis . | . . . . Rewire . | . . . . Trap . | . . . . Miscellaneous . | . . . . Route ------- -11/Scrapyard -10/Materials (discovered 3 exits: *Mat x3) -9/Materials -9/Mines History --------- Turn | Location | Event 14 | -11/Scrapyard | Discovered new exit (range 16) 120 | -11/Scrapyard | Entered Materials 199 | -10/Materials | Identified exit to Materials 251 | -10/Materials | Entered another Materials area 251 | -9/Materials | Evolved 2 slots: Propulsion x1, Utility x1 308 | -9/Materials | Build established: Mutant 855 | -9/Materials | Destroyed 7 combat bots 919 | -9/Materials | Identified exit to Mines 1074 | -9/Materials | Entered Mines 1075 | -9/Mines | Assembled infested the area 1077 | -9/Mines | Received a Mining Laser from a helpful Derelict 1109 | -9/Mines | Core integrity fell below 50% 1114 | -9/Mines | Core integrity fell below 20% 1120 | -9/Mines | Destroyed by as-44799 with Assembled Heavy Rifle Last Messages --------------- 01077_ XQ-2BD(g): "And why aren't you carrying a mining laser?! Certainly you don't want THEM to uncover you when the ceiling comes crashing down? Here, take my spare." 01080_ XQ-2BD(g): "You're apparently new around these parts, I'll cover you." 01091_ XQ-2BD(g) destroyed. 01092_ Lgt. Armor Plating destroyed. 01094_ as-34651 destroyed. 01097_ Lgt. Treads destroyed. 01097_ Seismic Detector destroyed. 01099_ Imp. Treads destroyed. 01103_ Sml. Laser destroyed. 01103_ Ion Engine destroyed. 01105_ Dropped Imp. Propulsion Shielding. 01106_ Dropped Lgt. Armor Plating. 01107_ Dropped Sml. Storage Unit. 01107_ Dropped Adv. Beam Cannon. 01108_ Slammed into as-49548. 01109_ as-49548 destroyed. 01110_ Slammed into as-86062. Map ----- +----------------------------------------------------+ | ????????????????????????????????????????????? | | ????????????????????????????????????????????? | | ?????####???????????????????????????????????? | | ????## ##?####????????????????????????????? | | ????# ### ##???????????????????????????? | | ????# | #???????????????????????????? | | ????# #???????????????????????????? | | ?????# #???????????????????????????? | | ?????### !] ##???????????????????????????? | | ???????##!!# ##????????????????????????????? | | ??????###=%####?????????????????????????????? | | ??????#!%[%%%[#?????????????????????????????? | | ??????#"""%%%[#?????????????????????????????? | | ??????#""" !%######????????????????????????? | | ??????#""" *= ### #???????????????? | | ??????# ### #??????????????? | | ??????#########?# ## #??????????????? | | ????????????????# #??? #??????????????? | | ???????????####?# #?????? ##??????????????? | | ??????????## ## ##???????????????????????? | | ??????????# ##??????????????????????? | | ??????????# a #??????????????????????? | | ??????????# a #??????????????????????? | | ?????????## a ##??????????????????????? | | ?????????# !%* ###?????????????????????? | | ?????????# ! @ #?????????????????????? | | ?????????# = #????????????????????? | | ????????# % #### #???????????????????? | | ????????# | #???## #???????????????????? | | ????????# ?????##a #???????????????????? | | ????????## ???????# a ##???????????????????? | | ?????????## ???????# ##????????????????????? | | ???????????????????#* #?????????????????????? | | ???????????????????#=a#?????????????????????? | | ????????????????????%a#?????????????????????? | | ???????????????????? %?????????????????????? | | ???????????????????? a*?????????????????????? | | ???????????????????? ?????????????????????? | | ???????????????????? ?????????????????????? | | ???????????????????? ?????????????????????? | | ???????????????????? ?????????????????????? | | ????????????????????????????????????????????? | | ????????????????????????????????????????????? | | ????????????????????????????????????????????? | | ????????????????????????????????????????????? | | ????????????????????????????????????????????? | | ????????????????????????????????????????????? | | ????????????????????????????????????????????? | | ????????????????????????????????????????????? | | ????????????????????????????????????????????? | +----------------------------------------------------+ Best States ------------- Heat Dissipation 28 Energy Generation 14 Energy Capacity 250 Matter Stores 300 Matter Capacity 300 Sight Range 16 Terrain Scan Density 10 Armor Coverage 150 Evasion (%) 50 Recoil Reduction 3 Item Schematics ----------------- None Robot Schematics ------------------ None Fabricated ------------ Nothing Alien Tech Used ----------------- None Achievements -------------- None Challenges ------------ None Game ------ Seed SupersonicThunderChronowheel Manual? 0 Play Time 00:10:22 Cumulative 53.3 hours Start 2022.10.08 @ 10:53:04 End 2022.10.08 @ 11:02:34 Sessions 1 Manual Loads 0 Difficulty Rogue Special Mode None Game No. 88 Rogue 87 Adventurer 1 Explorer 0 Win Type - Total 3 Types 3/0/0/0/0/0/0/0/0 Lore% 57 Gallery% 47 Achievement% 44 Wizard Run 0 Options --------- ASCII 0 Keyboard 0 Movement Numpad Keybinds 0 Fullscreen 1 Font 18/SmallcapsGlow Map View 76x50 Tactical HUD 1 Map Filters NONE Filters NONE Steam 1 RUN: 62290231-dff7-4ce5-9994-e97b4d4b4d72